bitfinex/quotes_BTCUSD_20241116
["timestamp","ask_amount","ask_price","bid_price","bid_amount"]
[1731769842989,0.21940555,90626.0,90604.0,0.220739]
[1731769843203,0.21940555,90626.0,90606.0,0.110366]
[1731769843415,0.21940555,90626.0,90599.0,0.22575]
[1731769843634,0.21940555,90626.0,90606.0,0.110366]
[1731769843872,0.21940555,90626.0,90613.0,0.110358]
[1731769844085,0.21940555,90626.0,90614.0,0.110357]
[1731769844742,0.21940555,90626.0,90613.0,0.110358]
[1731769844978,0.21940555,90626.0,90614.0,0.110357]
[1731769844979,0.23115155,90626.0,90614.0,0.110357]
[1731769845665,0.23115155,90626.0,90610.0,0.220726]
[1731769846138,0.23115155,90626.0,90611.0,0.11036]
[1731769846351,0.23115155,90626.0,90609.0,0.0008581]
[1731769846608,0.23115155,90626.0,90614.0,0.110358]
[1731769846840,0.23115155,90626.0,90609.0,0.2215841]
[1731769847061,0.23115155,90626.0,90609.0,0.0008581]
[1731769847269,0.23115155,90626.0,90609.0,0.2215841]
[1731769847483,0.23115155,90626.0,90609.0,0.1112211]
[1731769848159,0.23115155,90626.0,90609.0,0.0008581]
[1731769849079,0.23115155,90626.0,90609.0,0.1112211]
[1731769849290,0.23115155,90626.0,90609.0,0.0008581]
[1731769849291,0.23615155,90626.0,90609.0,0.0008581]
[1731769849986,0.12080855,90626.0,90609.0,0.0008581]
[1731769850199,0.18695577,90626.0,90609.0,0.0008581]
[1731769850869,0.19195577,90626.0,90609.0,0.0008581]
[1731769851137,1.0319666,90626.0,90609.0,0.0008581]
[1731769851358,1.07631751,90626.0,90609.0,0.0008581]
[1731769852043,1.07831751,90626.0,90609.0,0.0008581]
[1731769852489,1.10131751,90626.0,90609.0,0.0008581]
[1731769852958,1.10131751,90626.0,90624.0,0.00051415]
[1731769852959,0.245344,90625.0,90624.0,0.00051415]
[1731769853184,0.35440655,90625.0,90624.0,0.00051415]
[1731769853402,0.35440655,90625.0,90609.0,0.0008581]
[1731769853403,0.215409,90572.0,90565.0,0.0008588]
[1731769853626,0.115409,90572.0,90567.0,0.16556566]
[1731769853870,0.115409,90572.0,90565.0,0.0008588]
[1731769854635,0.661409,90572.0,90565.0,0.0008588]
[1731769856028,0.666409,90572.0,90565.0,0.0008588]
[1731769856248,0.120416,90566.0,90565.0,0.0008588]
[1731769856508,0.54148938,90566.0,90565.0,0.0008588]
[1731769856718,0.57679013,90566.0,90565.0,0.0008588]
[1731769857113,0.57879013,90566.0,90565.0,0.0008588]
[1731769857414,1.16517527,90566.0,90565.0,0.0008588]
[1731769857895,1.16317527,90566.0,90565.0,0.0008588]
[1731769858126,1.16517527,90566.0,90565.0,0.0008588]
[1731769858342,1.12479013,90566.0,90565.0,0.0008588]
[1731769858830,0.40943883,90556.0,90555.0,0.0008588]
[1731769859083,1.06364258,90556.0,90555.0,0.0008588]
[1731769859321,1.13932847,90556.0,90555.0,0.0008588]
[1731769859572,1.06364258,90556.0,90555.0,0.0008588]
[1731769860034,1.09809368,90556.0,90555.0,0.0008588]
[1731769860283,1.13847882,90556.0,90555.0,0.0008588]
[1731769860705,1.16347882,90556.0,90555.0,0.0008588]
[1731769861148,1.13847882,90556.0,90555.0,0.0008588]
[1731769861368,1.10009368,90556.0,90555.0,0.0008588]
[1731769861592,0.220444,90543.0,90533.0,0.00096912]
[1731769861777,0.87464775,90543.0,90533.0,0.0008588]
[1731769862008,0.94749419,90543.0,90533.0,0.0008588]
[1731769862920,0.87464775,90543.0,90533.0,0.0008588]
[1731769863125,0.76464775,90543.0,90533.0,0.0008588]
[1731769863599,0.58146101,90543.0,90533.0,0.0008588]
[1731769864058,0.47101701,90543.0,90533.0,0.0008588]
[1731769864287,0.0056832,90555.0,90538.0,0.29946083]
[1731769864506,0.16556566,90550.0,90538.0,0.29946083]
[1731769864718,0.16556566,90550.0,90538.0,0.18901083]
[1731769864964,0.16556566,90550.0,90542.0,0.01161163]
[1731769865409,0.16556566,90549.0,90542.0,0.01161163]
[1731769865657,0.110441,90546.0,90542.0,0.01161163]
[1731769865875,0.110444,90543.0,90542.0,0.01161163]
[1731769866092,0.21950655,90543.0,90542.0,0.01161163]
[1731769867072,0.22450655,90543.0,90542.0,0.01161163]
[1731769868007,0.69552356,90543.0,90542.0,0.01161163]
[1731769868471,0.80052356,90543.0,90542.0,0.01161163]
[1731769869181,0.69552356,90543.0,90542.0,0.01161163]
[1731769869449,0.70052356,90543.0,90542.0,0.01161163]
[1731769869893,0.69162746,90543.0,90542.0,0.01161163]
[1731769870851,0.69162746,90543.0,90542.0,0.01247113]
[1731769870852,0.22061045,90543.0,90542.0,0.01247113]
[1731769871088,0.32061045,90543.0,90542.0,0.01247113]
[1731769871516,0.115453,90536.0,90535.0,7e-05]
[1731769871736,0.22451555,90536.0,90535.0,7e-05]
[1731769873975,0.21951555,90536.0,90535.0,7e-05]
[1731769876555,0.110453,90536.0,90535.0,7e-05]
[1731769876782,0.220884,90545.0,90535.0,7e-05]
[1731769876783,0.16556566,90539.0,90535.0,7e-05]
[1731769877017,0.110453,90536.0,90535.0,7e-05]
[1731769877480,0.220889,90543.0,90535.0,7e-05]
[1731769877733,0.225872,90551.0,90535.0,7e-05]
[1731769877734,0.110452,90537.0,90535.0,7e-05]
[1731769877960,0.110453,90537.0,90535.0,7e-05]
[1731769878187,0.220894,90541.0,90535.0,7e-05]
[1731769878422,0.110449,90539.0,90535.0,7e-05]
[1731769878658,0.38642666,90555.0,90535.0,7e-05]
[1731769878659,0.16556566,90555.0,90535.0,0.19108083]
[1731769878895,0.16556566,90545.0,90544.0,0.110443]
[1731769879392,0.16556566,90545.0,90536.0,0.023]
[1731769879393,0.16556566,90555.0,90536.0,0.023]
[1731769879860,0.16556566,90555.0,90539.0,0.002]
[1731769880125,0.001719,90556.0,90535.0,0.18908083]
[1731769880126,0.16556566,90554.0,90550.0,0.110436]
[1731769880366,0.16556566,90554.0,90553.0,0.110432]
[1731769880606,0.001719,90556.0,90555.0,0.11043]
[1731769881361,0.001719,90556.0,90547.0,0.110438]
[1731769881581,0.001719,90556.0,90550.0,0.110436]
[1731769881811,0.16556566,90555.0,90547.0,0.110439]
[1731769882041,0.16556566,90555.0,90543.0,0.005]
[1731769882284,0.16556566,90555.0,90540.0,0.002]
[1731769882285,0.16556566,90555.0,90540.0,0.001]
[1731769882520,0.001719,90556.0,90542.0,0.110445]
[1731769882804,0.001719,90556.0,90535.0,0.00207]
[1731769882805,0.110453,90536.0,90535.0,0.0009274]
[1731769883290,0.220872,90550.0,90535.0,0.0009274]
[1731769883524,0.16556566,90551.0,90535.0,0.0009274]
[1731769883525,0.110448,90541.0,90535.0,0.0009274]
[1731769883756,0.10906255,90549.0,90535.0,0.0009274]
[1731769884006,0.110446,90542.0,90535.0,0.1113804]
[1731769884233,0.110451,90538.0,90535.0,0.0009274]
[1731769884716,0.10906255,90549.0,90535.0,0.0009274]
[1731769884717,0.16556566,90537.0,90535.0,0.0009274]
[1731769884952,0.10906255,90549.0,90535.0,0.0009274]
[1731769885178,0.10906255,90549.0,90534.0,0.0008588]
[1731769885179,0.16556566,90541.0,90534.0,0.110454]
[1731769885415,0.10906255,90549.0,90526.0,0.0160411]
[1731769885656,0.110438,90548.0,90530.0,0.005]
[1731769885892,0.16556566,90550.0,90535.0,0.002]
[1731769886123,0.16556566,90550.0,90549.0,0.110437]
[1731769886836,0.16556566,90550.0,90536.0,0.33496855]
[1731769886837,0.0017148,90554.0,90537.0,0.023]
[1731769887080,0.0017148,90554.0,90553.0,0.110432]
[1731769887306,0.0017148,90554.0,90540.0,0.220896]
[1731769887529,0.0017148,90554.0,90552.0,0.110433]
[1731769887754,0.0017148,90554.0,90553.0,0.110432]
[1731769888229,0.0017148,90554.0,90539.0,0.007]
[1731769888461,0.0017148,90554.0,90552.0,0.110433]
[1731769888709,0.0017148,90554.0,90553.0,0.110432]
[1731769888941,0.0017148,90554.0,90553.0,0.133432]
[1731769889211,0.0017148,90554.0,90542.0,0.023]
[1731769889446,0.0017148,90554.0,90540.0,0.023]
[1731769889447,0.110435,90551.0,90540.0,0.023]
[1731769889686,0.0017148,90554.0,90544.0,0.110443]
[1731769889687,0.110436,90550.0,90544.0,0.110443]
[1731769889917,0.220868,90552.0,90530.0,0.005]
[1731769890155,0.0017148,90554.0,90547.0,0.110439]
[1731769890156,0.1121458,90554.0,90547.0,0.110439]
[1731769890382,0.1121458,90554.0,90529.0,0.18901083]
[1731769890383,0.27599866,90552.0,90538.0,0.220901]
[1731769890610,0.27599866,90552.0,90545.0,0.110441]
[1731769890867,0.27599866,90552.0,90546.0,0.11044]
[1731769891100,0.27599866,90552.0,90540.0,0.220896]
[1731769891101,0.0017148,90554.0,90541.0,0.00220878]
[1731769891333,0.0017148,90554.0,90541.0,0.023]
[1731769891334,0.16556566,90553.0,90541.0,0.023]
[1731769891574,0.16556566,90553.0,90544.0,0.220887]
[1731769891815,0.16556566,90553.0,90541.0,0.023]
[1731769891816,0.16556566,90553.0,90548.0,0.110438]
[1731769892042,0.16556566,90553.0,90548.0,0.110437]
[1731769892275,0.0017148,90554.0,90548.0,0.110437]
[1731769892502,0.1121458,90554.0,90548.0,0.110437]
[1731769892727,0.110434,90552.0,90538.0,0.2209]
[1731769892971,0.0017148,90554.0,90546.0,0.110439]
[1731769892972,0.1121468,90554.0,90546.0,0.110439]
[1731769893200,0.11044,90547.0,90539.0,0.110449]
[1731769893422,0.38643066,90553.0,90543.0,0.110444]
[1731769893423,0.110433,90552.0,90543.0,0.110444]
[1731769893653,0.220867,90552.0,90540.0,0.220896]
[1731769893881,0.220867,90552.0,90542.0,0.110445]
[1731769893882,0.110435,90551.0,90542.0,0.110445]
[1731769894117,0.110438,90549.0,90542.0,0.110445]
[1731769894347,0.16556566,90553.0,90538.0,0.023]
[1731769894579,0.110435,90551.0,90545.0,0.110442]
[1731769894809,0.16556566,90553.0,90538.0,0.023]
[1731769895042,0.16556566,90553.0,90532.0,0.005]
[1731769895043,0.10906255,90552.0,90532.0,0.005]
[1731769895284,0.10906255,90552.0,90533.0,0.220912]
[1731769895285,0.110444,90544.0,90533.0,0.220912]
[1731769895559,0.220874,90549.0,90533.0,0.220912]
[1731769895789,0.0017148,90554.0,90543.0,0.220887]
[1731769895790,0.16556566,90550.0,90543.0,0.220887]
[1731769896025,0.16556566,90550.0,90532.0,0.005]
[1731769896267,0.001715,90553.0,90544.0,0.110442]
[1731769896735,0.110438,90548.0,90540.0,0.110447]
[1731769896978,0.001715,90553.0,90532.0,0.005]
[1731769896979,0.110446,90542.0,90532.0,0.005]
[1731769897200,0.220874,90549.0,90534.0,0.002]
[1731769897430,0.110449,90540.0,90534.0,0.002]
[1731769897645,0.110449,90540.0,90534.0,0.112454]
[1731769897869,0.22087,90551.0,90535.0,0.220909]
[1731769898102,0.16556566,90544.0,90543.0,0.110444]
[1731769898332,0.16556566,90544.0,90537.0,0.220904]
[1731769898613,0.220862,90555.0,90537.0,0.220904]
[1731769898614,0.220862,90555.0,90539.0,0.002]
[1731769898838,0.110437,90549.0,90542.0,0.110445]
[1731769899060,0.110437,90549.0,90540.0,0.220896]
[1731769899061,0.220851,90559.0,90534.0,0.002]
[1731769899300,0.0017148,90554.0,90539.0,0.002]
[1731769899555,0.16728066,90553.0,90552.0,0.110433]
[1731769900022,0.001715,90553.0,90552.0,0.110433]
[1731769900710,0.001715,90553.0,90550.0,0.110435]
[1731769900948,0.001715,90553.0,90551.0,0.110434]
[1731769901181,0.001715,90553.0,90548.0,0.220877]
[1731769901182,0.001715,90553.0,90550.0,0.110435]
[1731769901676,0.001715,90553.0,90541.0,0.023]
[1731769902093,0.001715,90553.0,90552.0,0.110433]
[1731769903304,0.001715,90553.0,90552.0,0.11264145]
[1731769903528,0.001715,90553.0,90552.0,0.110433]
[1731769903750,0.001715,90553.0,90552.0,0.24970398]
[1731769903978,0.001715,90553.0,90552.0,0.24949555]
[1731769904223,0.001715,90553.0,90552.0,0.29444142]
[1731769907014,0.001715,90553.0,90552.0,0.39776624]
[1731769907243,0.001715,90553.0,90552.0,0.4046628]
[1731769907459,0.001715,90553.0,90552.0,0.4276628]
[1731769907892,0.001715,90553.0,90552.0,0.31722975]
[1731769908122,0.001715,90553.0,90552.0,0.42766275]
[1731769908389,0.001715,90553.0,90552.0,0.55898757]
[1731769908621,0.001715,90553.0,90552.0,0.43266275]
[1731769909307,0.220746,90602.0,90552.0,0.43266275]
[1731769909308,0.005,90614.0,90572.0,0.005]
[1731769909544,0.005,90614.0,90575.0,0.110405]
[1731769909545,0.22075,90601.0,90575.0,0.110405]
[1731769909807,0.220737,90606.0,90575.0,0.23136406]
[1731769910346,0.220721,90612.0,90594.0,0.110382]
[1731769910572,0.220721,90612.0,90578.0,0.005]
[1731769910573,0.16556566,90580.0,90579.0,0.1104]
[1731769910791,0.220742,90604.0,90579.0,0.1104]
[1731769910792,0.220724,90611.0,90594.0,0.11727695]
[1731769911013,0.220717,90614.0,90589.0,0.002]
[1731769911014,0.110368,90606.0,90589.0,0.002]
[1731769911236,0.16556566,90597.0,90590.0,0.01792696]
[1731769911457,0.220717,90614.0,90591.0,0.01792696]
[1731769911697,0.16556566,90613.0,90595.0,0.220762]
[1731769911920,0.16556566,90603.0,90602.0,0.110372]
[1731769912141,0.110373,90602.0,90588.0,0.220778]
[1731769912360,0.110371,90603.0,90589.0,0.01792656]
[1731769912588,0.110368,90606.0,90590.0,0.01792656]
[1731769912805,0.16556566,90603.0,90591.0,0.23869856]
[1731769913027,0.110377,90598.0,90592.0,0.01792656]
[1731769913254,0.110376,90600.0,90593.0,0.01792656]
[1731769913535,0.38630866,90603.0,90594.0,0.01792656]
[1731769913536,0.220745,90602.0,90594.0,0.01792656]
[1731769913765,0.220745,90602.0,90595.0,0.01792656]
[1731769913980,0.110377,90599.0,90596.0,0.00689483]
[1731769914202,0.110377,90599.0,90597.0,0.00689483]
[1731769914427,0.16556566,90603.0,90587.0,0.11039]
[1731769914428,0.11038,90596.0,90587.0,0.11039]
[1731769914651,0.110381,90595.0,90588.0,0.00689483]
[1731769914943,0.11038,90596.0,90589.0,0.11728283]
[1731769915174,0.110378,90598.0,90590.0,0.110387]
[1731769915395,0.16556566,90603.0,90584.0,0.220787]
[1731769915663,0.110376,90600.0,90584.0,0.220787]
[1731769915897,0.220745,90602.0,90589.0,0.110387]
[1731769916135,0.16556566,90603.0,90581.0,0.005]
[1731769916136,0.10906255,90601.0,90581.0,0.005]
[1731769916595,0.10906255,90601.0,90576.0,0.220809]
[1731769916596,0.220757,90597.0,90576.0,0.220809]
[1731769916824,0.16556566,90603.0,90577.0,0.220806]
[1731769916825,0.22077,90592.0,90577.0,0.220806]
[1731769917046,0.16556566,90603.0,90572.0,0.005]
[1731769917047,0.16556566,90603.0,90578.0,0.00220792]
[1731769917296,0.16556566,90593.0,90592.0,0.110385]
[1731769917762,0.16556566,90603.0,90588.0,0.220779]
[1731769918011,0.16556566,90603.0,90579.0,0.10906255]
[1731769918012,0.110373,90602.0,90594.0,0.110382]
[1731769918256,0.04548016,90614.0,90586.0,0.005]
[1731769918505,0.16556566,90602.0,90587.0,0.10906255]
[1731769918787,0.04548016,90614.0,90580.0,0.005]
[1731769918788,0.220723,90611.0,90580.0,0.005]
[1731769919050,0.27593666,90603.0,90593.0,0.110382]
[1731769919263,0.110372,90602.0,90593.0,0.110382]
[1731769919463,0.110374,90601.0,90593.0,0.110382]
[1731769919684,0.220728,90609.0,90590.0,0.220773]
[1731769919685,0.110368,90606.0,90590.0,0.220773]
[1731769919909,0.0017146,90596.0,90595.0,0.110381]
[1731769920862,0.0017146,90596.0,90595.0,0.112381]
[1731769921865,0.0017146,90596.0,90595.0,0.110381]
[1731769923019,0.0017146,90596.0,90595.0,0.11258829]
[1731769923236,0.0017146,90596.0,90595.0,0.110381]
[1731769923688,0.0017162,90636.0,90596.0,0.023]
[1731769923957,0.16556566,90621.0,90620.0,0.11035]
[1731769924215,0.16728326,90635.0,90610.0,0.005]
[1731769924216,0.16728326,90635.0,90634.0,0.110333]
[1731769924670,0.16728326,90635.0,90626.0,0.220686]
[1731769924901,0.0017176,90635.0,90624.0,0.110345]
[1731769925141,0.38623266,90634.0,90614.0,0.12632482]
[1731769925394,0.38623266,90634.0,90606.0,0.16556566]
[1731769925395,0.38623266,90634.0,90619.0,0.110351]
[1731769925396,0.11534,90629.0,90619.0,0.110351]
[1731769925679,0.11534,90629.0,90601.0,0.13121208]
[1731769925680,0.005,90615.0,90596.0,0.16556566]
[1731769925910,0.225714,90615.0,90607.0,0.16556566]
[1731769926138,0.005,90610.0,90592.0,0.12632482]
[1731769926369,0.005,90606.0,90595.0,0.11038]
[1731769926592,0.110369,90605.0,90597.0,0.110378]
[1731769926830,0.110373,90602.0,90593.0,0.110383]
[1731769927073,0.005,90606.0,90587.0,0.005]
[1731769927304,0.16556566,90608.0,90587.0,0.005]
[1731769927536,0.16556566,90608.0,90589.0,0.220777]
[1731769927537,0.005,90606.0,90589.0,0.220777]
[1731769927802,0.16556566,90608.0,90587.0,0.005]
[1731769927803,0.220748,90601.0,90587.0,0.005]
[1731769928042,0.110378,90598.0,90589.0,0.110388]
[1731769928268,0.110378,90598.0,90573.0,0.18934992]
[1731769928269,0.16556566,90597.0,90578.0,0.04394182]
[1731769928503,0.11072878,90597.0,90579.0,0.005]
[1731769928752,0.10906255,90602.0,90589.0,0.110387]
[1731769928753,0.16556566,90596.0,90589.0,0.110387]
[1731769929016,0.16556566,90596.0,90571.0,0.005]
[1731769929017,0.115385,90592.0,90571.0,0.005]
[1731769929260,0.005,90604.0,90580.0,0.18934992]
[1731769929502,0.38629166,90610.0,90593.0,0.110382]
[1731769929503,0.16556566,90598.0,90593.0,0.110382]
[1731769929724,0.16556566,90598.0,90594.0,0.110381]
[1731769929954,0.16556566,90598.0,90590.0,0.220774]
[1731769929955,0.17056566,90610.0,90581.0,0.38636166]
[1731769930194,0.17056566,90610.0,90607.0,0.110365]
[1731769930195,0.16556566,90610.0,90607.0,0.110365]
[1731769930411,0.16556566,90610.0,90583.0,0.023]
[1731769930658,0.16556566,90610.0,90585.0,0.18856566]
[1731769930869,0.16556566,90609.0,90586.0,0.10906255]
[1731769931093,0.005,90616.0,90611.0,0.110361]
[1731769931316,0.005,90616.0,90610.0,0.110363]
[1731769932013,0.005,90616.0,90613.0,0.110358]
[1731769932240,0.005,90616.0,90596.0,0.22076]
[1731769932451,0.002,90625.0,90614.0,0.220715]
[1731769932673,0.16556566,90619.0,90618.0,0.110353]
[1731769932889,0.005,90621.0,90612.0,0.220719]
[1731769933169,0.005,90621.0,90611.0,0.110361]
[1731769933170,0.115351,90620.0,90611.0,0.110361]
[1731769933375,0.005,90620.0,90609.0,0.220728]
[1731769933624,0.220655,90639.0,90609.0,0.220728]
[1731769933625,0.005,90622.0,90609.0,0.220728]
[1731769933844,0.28091466,90622.0,90601.0,0.18934992]
[1731769934069,0.17056566,90622.0,90602.0,0.220745]
[1731769934325,0.17056566,90622.0,90611.0,0.220722]
[1731769934546,0.17056566,90622.0,90614.0,0.110357]
[1731769934547,0.28091366,90622.0,90614.0,0.110357]
[1731769934763,0.17056566,90622.0,90602.0,0.331117]
[1731769935016,0.17056566,90622.0,90601.0,0.18934992]
[1731769935017,0.10906255,90629.0,90606.0,0.220735]
[1731769935240,0.16556566,90623.0,90622.0,0.110348]
[1731769935704,0.005,90629.0,90620.0,0.2207]
[1731769935963,0.005,90629.0,90597.0,0.16556566]
[1731769936189,0.0017176,90635.0,90610.0,0.18934992]
[1731769936446,0.0017176,90635.0,90611.0,0.0022068]
[1731769936670,0.0017176,90635.0,90634.0,0.110333]
[1731769938245,0.00120476,90635.0,90619.0,0.18934992]
[1731769938469,0.00120476,90635.0,90591.0,0.39758097]
[1731769938470,0.110333,90634.0,90627.0,0.110341]
[1731769938688,0.16556566,90633.0,90617.0,0.005]
[1731769938948,0.002,90642.0,90617.0,0.005]
[1731769939180,0.002,90642.0,90614.0,0.220716]
[1731769939181,0.10906255,90641.0,90618.0,0.00220679]
[1731769939423,0.220622,90653.0,90637.0,0.110329]
[1731769939424,0.110319,90646.0,90637.0,0.110329]
[1731769939678,0.001716,90647.0,90632.0,0.220671]
[1731769939913,0.001716,90647.0,90619.0,0.16556566]
[1731769940173,0.110324,90643.0,90622.0,0.220696]
[1731769940395,0.16928186,90645.0,90619.0,0.27462821]
[1731769940396,0.110326,90640.0,90620.0,0.220701]
[1731769940637,0.110324,90643.0,90632.0,0.220671]
[1731769940907,0.110324,90642.0,90635.0,0.110331]
[1731769941149,0.16728186,90645.0,90619.0,0.10906255]
[1731769941374,0.16728186,90645.0,90620.0,0.16556566]
[1731769941375,0.10906255,90641.0,90620.0,0.16556566]
[1731769941601,0.10906255,90641.0,90608.0,0.005]
[1731769941602,0.002,90638.0,90608.0,0.220731]
[1731769941822,0.16728186,90645.0,90621.0,0.16556566]
[1731769941823,0.10906255,90637.0,90621.0,0.16556566]
[1731769942047,0.16556566,90635.0,90634.0,0.110333]
[1731769942275,0.16556566,90635.0,90632.0,0.110336]
[1731769942500,0.10906255,90637.0,90630.0,0.110338]
[1731769942501,0.21939255,90637.0,90630.0,0.110338]
[1731769942731,0.16728186,90645.0,90625.0,0.00220678]
[1731769942949,0.10906255,90643.0,90617.0,0.16556566]
[1731769943419,0.16728226,90644.0,90621.0,0.18934992]
[1731769943618,0.27760326,90644.0,90635.0,0.110332]
[1731769943870,0.27760326,90644.0,90636.0,0.11033]
[1731769944110,0.16728226,90644.0,90641.0,0.110324]
[1731769944356,0.0017166,90644.0,90638.0,0.110328]
[1731769944596,0.0017166,90644.0,90623.0,0.220694]
[1731769944837,0.0017166,90644.0,90624.0,0.220692]
[1731769945082,0.110324,90642.0,90617.0,0.005]
[1731769945323,0.16556566,90643.0,90619.0,0.16556566]
[1731769945540,0.10906255,90642.0,90615.0,0.04580075]
[1731769945775,0.27588766,90643.0,90617.0,0.16556566]
[1731769946006,0.16556566,90643.0,90642.0,0.110324]
[1731769946464,0.16556566,90643.0,90640.0,0.110325]
[1731769946679,0.0017166,90644.0,90621.0,0.005]
[1731769946908,0.0017166,90644.0,90640.0,0.110326]
[1731769947193,0.16556566,90643.0,90634.0,0.220667]
[1731769947469,0.0017166,90644.0,90641.0,0.110325]
[1731769947702,0.0017166,90644.0,90643.0,0.110322]
[1731769949619,0.0017166,90644.0,90628.0,0.16556566]
[1731769949620,0.0017166,90644.0,90627.0,0.12612964]
[1731769949871,0.0017166,90644.0,90643.0,0.110322]
[1731769950366,0.0017166,90644.0,90620.0,0.12612964]
[1731769950598,0.002,90641.0,90627.0,0.16556566]
[1731769950812,0.002,90641.0,90630.0,0.220677]
[1731769950813,0.112326,90641.0,90630.0,0.220677]
[1731769951035,0.0017166,90644.0,90636.0,0.11033]
[1731769951036,0.1120386,90644.0,90636.0,0.11033]
[1731769951525,0.0017166,90644.0,90626.0,0.110343]
[1731769951752,0.110325,90641.0,90635.0,0.110332]
[1731769951981,0.0017166,90644.0,90632.0,0.110335]
[1731769952207,0.002,90641.0,90623.0,0.220694]
[1731769952452,0.110337,90632.0,90620.0,0.220701]
[1731769952696,0.22067,90633.0,90619.0,0.16556566]
[1731769952954,0.002,90634.0,90614.0,0.220716]
[1731769953200,0.110342,90627.0,90620.0,0.11035]
[1731769953438,0.16556566,90633.0,90616.0,0.220711]
[1731769953693,0.16556566,90633.0,90613.0,0.12612964]
[1731769954155,0.16556566,90633.0,90606.0,0.005]
[1731769954156,0.002,90625.0,90614.0,0.110357]
[1731769954384,0.002,90625.0,90606.0,0.220735]
[1731769954385,0.110343,90627.0,90617.0,0.220708]
[1731769954605,0.110344,90626.0,90619.0,0.110351]
[1731769954871,0.002,90624.0,90613.0,0.110358]
[1731769955095,0.10906255,90632.0,90611.0,0.11036]
[1731769955317,0.002,90630.0,90618.0,0.110352]
[1731769955547,0.002,90630.0,90605.0,0.12612964]
[1731769955548,0.110349,90621.0,90616.0,0.0008567]
[1731769955769,0.110346,90624.0,90618.0,0.110353]
[1731769956007,0.220684,90627.0,90616.0,0.0008567]
[1731769956008,0.16556566,90623.0,90616.0,0.0008567]
[1731769956275,0.220687,90626.0,90616.0,0.0008567]
[1731769956499,0.110352,90619.0,90616.0,0.0008567]
[1731769956736,0.220696,90622.0,90616.0,0.0008567]
[1731769956979,0.110352,90620.0,90616.0,0.0008567]
[1731769957207,0.32973655,90632.0,90616.0,0.0008567]
[1731769957208,0.220687,90626.0,90616.0,0.0008567]
[1731769957431,0.002,90623.0,90616.0,0.0008567]
[1731769957891,0.11035,90621.0,90616.0,0.0008567]
[1731769958109,0.16556566,90620.0,90616.0,0.0008567]
[1731769958326,0.16756566,90633.0,90616.0,0.0008567]
[1731769958327,0.110354,90617.0,90616.0,0.0008567]
[1731769958820,0.112354,90617.0,90616.0,0.0008567]
[1731769959071,0.22141655,90617.0,90616.0,0.0008567]
[1731769964375,0.110354,90617.0,90616.0,0.0008567]
[1731769966004,0.110356,90616.0,90609.0,0.0935597]
[1731769966222,0.222701,90621.0,90602.0,0.00220724]
[1731769966463,0.220692,90624.0,90609.0,0.110363]
[1731769966682,0.002,90625.0,90605.0,0.00220714]
[1731769966683,0.16556566,90621.0,90605.0,0.00220714]
[1731769966928,0.110354,90617.0,90611.0,0.110361]
[1731769967139,0.110354,90617.0,90605.0,0.00220714]
[1731769967360,0.002,90620.0,90597.0,0.38632266]
[1731769967584,0.110359,90614.0,90598.0,0.16556566]
[1731769967836,0.11036,90612.0,90599.0,0.220752]
[1731769968064,0.220711,90616.0,90599.0,0.220752]
[1731769968292,0.16556566,90611.0,90591.0,0.04586873]
[1731769968513,0.16556566,90611.0,90593.0,0.110383]
[1731769968514,0.110375,90600.0,90593.0,0.110383]
[1731769968759,0.220719,90613.0,90590.0,0.0008569]
[1731769968760,0.002,90613.0,90590.0,0.0008569]
[1731769969015,0.16556566,90608.0,90590.0,0.0008569]
[1731769969240,0.16556566,90608.0,90591.0,0.220772]
[1731769969461,0.005,90624.0,90590.0,0.0008569]
[1731769969462,0.16556566,90611.0,90601.0,0.220747]
[1731769969683,0.16556566,90611.0,90604.0,0.11037]
[1731769969684,0.27592766,90611.0,90604.0,0.11037]
[1731769969908,0.27592766,90611.0,90591.0,0.220772]
[1731769969909,0.16556566,90611.0,90591.0,0.220772]
[1731769970245,0.16556566,90611.0,90590.0,0.10991945]
[1731769970246,0.27592766,90611.0,90605.0,0.110369]
[1731769970344,0.16556566,90611.0,90602.0,0.220744]
[1731769970559,0.16556566,90611.0,90606.0,0.110367]
[1731769970779,0.16556566,90611.0,90599.0,0.220751]
[1731769970780,0.002,90609.0,90599.0,0.220751]
[1731769971072,0.110372,90603.0,90594.0,0.110382]
[1731769971294,0.220733,90607.0,90590.0,0.0008569]
[1731769971508,0.110372,90603.0,90594.0,0.110381]
[1731769971731,0.222735,90606.0,90590.0,0.0008569]
[1731769971732,0.16756566,90606.0,90590.0,0.0008569]
[1731769972160,0.110369,90605.0,90590.0,0.0008569]
[1731769972375,0.110374,90601.0,90592.0,0.110384]
[1731769972667,0.110374,90601.0,90590.0,0.0008569]
[1731769972668,0.22074,90604.0,90593.0,0.110383]
[1731769972847,0.11037,90604.0,90595.0,0.110381]
[1731769973060,0.16756566,90606.0,90595.0,0.110381]
[1731769973061,0.110372,90603.0,90595.0,0.110381]
[1731769973276,0.220738,90605.0,90591.0,0.220772]
[1731769973506,0.110373,90602.0,90594.0,0.110382]
[1731769973735,0.16556566,90606.0,90592.0,0.22077]
[1731769973950,0.110372,90603.0,90595.0,0.110381]
[1731769974202,0.110372,90603.0,90590.0,0.0008569]
[1731769974418,0.27593466,90606.0,90599.0,0.110376]
[1731769974641,0.16556566,90608.0,90603.0,0.11037]
[1731769974883,0.10906255,90607.0,90590.0,0.0008569]
[1731769975110,0.110375,90601.0,90593.0,0.110383]
[1731769975337,0.110375,90600.0,90593.0,0.110383]
[1731769975581,0.110372,90603.0,90594.0,0.110381]
[1731769975800,0.10906255,90604.0,90591.0,0.220772]
[1731769976018,0.10906255,90604.0,90590.0,0.0008569]
[1731769976488,0.110377,90599.0,90590.0,0.0008569]
[1731769976737,0.110374,90601.0,90590.0,0.0008569]
[1731769977015,0.110368,90606.0,90590.0,0.0008569]
[1731769977224,0.16556566,90608.0,90591.0,0.220771]
[1731769977448,0.16556566,90608.0,90590.0,0.0008569]
[1731769977449,0.16556566,90608.0,90601.0,0.110373]
[1731769977665,0.16556566,90608.0,90590.0,0.0008569]
[1731769977666,0.16556566,90608.0,90604.0,0.110369]
[1731769977879,0.16556566,90608.0,90590.0,0.0008569]